fUST/lending_fUST_20250309
["ID","MTS","AMOUNT","RATE_DAILY","PERIOD"]
[355737037,1741519852364,-1545.16,0.00048219,120]
[355737038,1741519852373,-886.19,0.00048219,120]
[355737039,1741519852383,-500.0,0.00048219,120]
[355737040,1741519852393,-500.0,0.00048219,120]
[355737041,1741519852403,-500.0,0.00048219,120]
[355737042,1741519852413,-500.0,0.00048219,120]
[355737043,1741519852422,-500.0,0.00048219,120]
[355737044,1741519852431,-535.48921365,0.00048219,120]
[355737045,1741519852441,-500.0,0.00048219,120]
[355737046,1741519852450,-500.0,0.00048219,120]
[355737047,1741519852459,-500.0,0.00048219,120]
[355737048,1741519852469,-500.0,0.00048219,120]
[355737049,1741519852478,-500.0,0.00048219,120]
[355737050,1741519852489,-500.0,0.00048219,120]
[355737051,1741519852498,-500.0,0.00048219,120]
[355737052,1741519852509,-500.0,0.00048219,120]
[355737053,1741519852519,-500.0,0.00048219,120]
[355737054,1741519852528,-500.0,0.00048219,120]
[355737055,1741519852538,-500.0,0.00048219,120]
[355737056,1741519852547,-648.62516502,0.00048219,120]
[355737057,1741519852556,-500.0,0.00048219,120]
[355737058,1741519852566,-157.98951824,0.00048219,120]
[355737059,1741519852575,-1154.94,0.00048219,120]
[355737060,1741519852585,-500.0,0.00048219,120]
[355737061,1741519852594,-500.0,0.00048219,120]
[355737062,1741519852603,-500.0,0.00048219,120]
[355737063,1741519852681,-409.83936503,0.00048219,120]
[355737064,1741519852691,-500.0,0.00048219,120]
[355737065,1741519852701,-500.0,0.00048219,120]
[355737066,1741519852711,-500.0,0.00048219,120]
[355737067,1741519852720,-500.0,0.00048219,120]
[355737068,1741519852730,-500.0,0.00048219,120]
[355737069,1741519852739,-500.0,0.00048219,120]
[355737070,1741519852748,-500.0,0.00048219,120]
[355737071,1741519852759,-500.0,0.00048219,120]
[355737072,1741519852769,-500.0,0.00048219,120]
[355737073,1741519852778,-500.0,0.00048219,120]
[355737074,1741519852788,-500.0,0.00048219,120]
[355737075,1741519852797,-500.0,0.00048219,120]
[355737076,1741519852807,-536.31852003,0.00048219,120]
[355737077,1741519852816,-500.0,0.00048219,120]
[355737078,1741519852825,-500.0,0.00048219,120]
[355737079,1741519852835,-500.0,0.00048219,120]
[355737080,1741519852845,-500.0,0.00048219,120]
[355737081,1741519852854,-500.0,0.00048219,120]
[355737082,1741519852864,-212.95256584,0.00048219,120]
[355737083,1741519852874,-523.18876996,0.00048219,120]
[355737084,1741519852884,-500.0,0.00048219,120]
[355737085,1741519852893,-401.45508615,0.00048219,120]
[355737086,1741519852903,-500.0,0.00048219,120]
[355737087,1741519852912,-646.55,0.00048219,120]
[355737088,1741519852922,-278.83672062,0.00048219,120]
[355737089,1741519852932,-675.43,0.00048219,120]
[355737090,1741519852942,-500.0,0.00048219,120]
[355737091,1741519852952,-500.0,0.00048219,120]
[355737092,1741519852962,-546.9706657,0.00048219,120]
[355737093,1741519852971,-334.68286952,0.00048219,120]
[355737094,1741519852981,-500.0,0.00048219,120]
[355737095,1741519852990,-500.0,0.00048219,120]
[355737096,1741519853000,-577.31,0.00048219,120]
[355737097,1741519853011,-500.0,0.00048219,120]
[355737098,1741519853020,-500.0,0.00048219,120]
[355737099,1741519853030,-1356.99,0.00048219,120]
[355737100,1741519853039,-500.0,0.00048219,120]
[355737101,1741519853049,-503.03600672,0.00048219,120]
[355737102,1741519853059,-500.0,0.00048219,120]
[355737103,1741519853068,-500.0,0.00048219,120]
[355737104,1741519853078,-500.0,0.00048219,120]
[355737105,1741519853089,-500.0,0.00048219,120]
[355737106,1741519853101,-845.13,0.00048219,120]
[355737107,1741519853111,-3313.35,0.00048219,120]
[355737108,1741519853120,-500.0,0.00048219,120]
[355737109,1741519853130,-500.0,0.00048219,120]
[355737110,1741519853139,-500.0,0.00048219,120]
[355737111,1741519853148,-500.0,0.00048219,120]
[355737112,1741519853157,-500.0,0.00048219,120]
[355737113,1741519853167,-500.0,0.00048219,120]
[355737114,1741519853179,-500.0,0.00048219,120]
[355737115,1741519853188,-500.0,0.00048219,120]
[355737116,1741519853197,-500.0,0.00048219,120]
[355737117,1741519853206,-7926.31,0.00048219,120]
[355737118,1741519853215,-500.0,0.00048219,120]
[355737119,1741519853224,-500.0,0.00048219,120]
[355737120,1741519853234,-500.0,0.00048219,120]
[355737121,1741519853243,-1096.3,0.00048219,120]
[355737122,1741519853253,-3059.87,0.00048219,120]
[355737123,1741519853262,-1467.07,0.00048219,120]
[355737124,1741519853271,-500.0,0.00048219,120]
[355737125,1741519853281,-500.0,0.00048219,120]
[355737126,1741519853290,-1382.35,0.00048219,120]
[355737127,1741519853300,-500.0,0.00048219,120]
[355737128,1741519853311,-500.0,0.00048219,120]
[355737129,1741519853324,-500.0,0.00048219,120]
[355737130,1741519853334,-500.0,0.00048219,120]
[355737131,1741519853344,-1572.75,0.00048219,120]
[355737132,1741519853355,-528.94134562,0.00048219,120]
[355737133,1741519853364,-500.0,0.00048219,120]
[355737134,1741519853374,-500.0,0.00048219,120]
[355737135,1741519853383,-500.0,0.00048219,120]
[355737136,1741519853393,-500.0,0.00048219,120]
[355737137,1741519853403,-500.0,0.00048219,120]
[355737138,1741519853413,-500.0,0.00048219,120]
[355737139,1741519853422,-500.0,0.00048219,120]
[355737140,1741519853431,-500.0,0.00048219,120]
[355737141,1741519853440,-2338.93,0.00048219,120]
[355737142,1741519853450,-500.0,0.00048219,120]
[355737143,1741519853459,-500.0,0.00048219,120]
[355737144,1741519853469,-1306.38,0.00048219,120]
[355737145,1741519853478,-500.0,0.00048219,120]
[355737146,1741519853487,-500.0,0.00048219,120]
[355737147,1741519853497,-500.0,0.00048219,120]
[355737148,1741519853508,-41747.73,0.00048219,7]
[355737149,1741519853518,-500.0,0.00048219,120]
[355737150,1741519853527,-500.0,0.00048219,120]
[355737151,1741519853537,-500.0,0.00048219,120]
[355737152,1741519853546,-500.0,0.00048219,120]
[355737153,1741519853555,-500.0,0.00048219,120]
[355737154,1741519853565,-842.2,0.00048219,120]
[355737155,1741519853574,-556.33,0.00048219,120]
[355737156,1741519853583,-500.0,0.00048219,120]
[355737157,1741519853592,-500.0,0.00048219,120]
[355737158,1741519853601,-565.43,0.00048219,120]
[355737159,1741519853610,-500.0,0.00048219,120]
[355737160,1741519853620,-500.0,0.00048219,120]
[355737161,1741519853629,-500.0,0.00048219,120]
[355737162,1741519853638,-500.0,0.00048219,120]
[355737163,1741519853647,-611.11,0.00048219,120]
[355737164,1741519853657,-500.0,0.00048219,120]
[355737165,1741519853666,-500.0,0.00048219,120]
[355737166,1741519853675,-500.0,0.00048219,120]
[355737167,1741519853684,-1992.95,0.00048219,30]
[355737168,1741519853693,-500.0,0.00048219,120]
[355737169,1741519853703,-665.88,0.00048219,120]
[355737170,1741519853712,-500.0,0.00048219,120]
[355737171,1741519853721,-500.0,0.00048219,120]
[355737172,1741519853731,-2928.3,0.00048219,120]
[355737173,1741519853740,-500.0,0.00048219,120]
[355737174,1741519853750,-500.0,0.00048219,120]
[355737175,1741519853760,-12242.87,0.00048219,2]
[355737176,1741519853769,-500.0,0.00048219,120]
[355737177,1741519853778,-1515.88,0.00048219,120]
[355737178,1741519853788,-500.0,0.00048219,120]
[355737179,1741519853797,-500.55636734,0.00048273,10]
[355737180,1741519853806,-151.0,0.00048294,120]
[355737181,1741519853815,-265.333002,0.00048294,120]
[355737182,1741519853824,-265.333002,0.00048294,120]
[355737183,1741519853834,-258.89676619,0.00048373,10]
[355737184,1741519853844,-200.67557676,0.00048373,10]
[355737185,1741519853919,-12328.84025174,0.00048379,30]
[355737186,1741519853929,-243.839853,0.00048399,120]
[355737187,1741519853940,-243.839853,0.00048399,120]
[355737188,1741519853950,-150.0,0.000484,120]
[355737189,1741519853960,-37193.79582316,0.000484,120]
[355737190,1741519854183,-500.0,0.00046575,120]
[355737191,1741519854194,-500.0,0.00047123,120]
[355737192,1741519854204,-500.0,0.00047671,120]
[355737193,1741519854213,-510.66308662,0.00048219,120]
[355737194,1741519854223,-108283.93691336,0.000484,120]
[355737195,1741519854411,-500.0,0.00046575,120]
[355737196,1741519854421,-500.0,0.00047671,120]
[355737197,1741519854430,-500.0,0.00048219,120]
[355737198,1741519854439,-3036.789086,0.000484,120]
[355737199,1741519855366,-115.4341197,0.00046574,2]
[355737200,1741519855378,-220.21662839,0.00046574,2]
[355737201,1741519855388,-150.0,0.00047173,3]
[355737202,1741519855398,-250.0,0.00047721,3]
[355737203,1741519855408,-350.0,0.00048268,3]
[355737204,1741519855418,-880.75470195,0.000484,120]
[355737205,1741519855429,-37980.4537154,0.000484,120]
[355737206,1741519855441,-847.7,0.000484,120]
[355737207,1741519862641,162.390994,0.00037695,14]
[355737208,1741519866990,162.390994,0.00037695,14]
[355737209,1741519871491,391.153395,0.00037695,14]
[355737210,1741519876491,391.153395,0.00037695,14]
[355737211,1741519895086,338.7508966,0.00042453,2]
[355737212,1741519902263,260.03433,0.0003769,14]
[355737213,1741519902684,260.03433,0.00037695,14]
[355737214,1741519908891,260.03433,0.0003769,14]
[355737215,1741519909278,260.03433,0.00037695,14]
[355737216,1741519947451,500.0,0.00031,10]
[355737217,1741519947892,500.0,0.00031,10]
[355737218,1741519948268,500.0,0.00031,10]
[355737219,1741519948807,396.08269555,0.0002802,2]
[355737220,1741519948831,103.91730445,0.0002802,2]
[355737221,1741519949154,500.0,0.0002802,2]
[355737222,1741519949512,710.4343693,0.0002802,2]
[355737223,1741520320574,-253.29115343,0.000309,5]
[355737227,1741520553512,-253.29115343,0.00028019,2]
[355737228,1741520630001,-178.7270363,0.00028019,2]
[355737229,1741520642492,-500.0,0.0002802,2]
[355737230,1741520645670,-300.0,0.00028019,2]
[355737231,1741520645693,-200.0,0.0002802,2]
[355737232,1741520647771,-300.0,0.0002802,2]
[355737233,1741520651178,-267.25353226,0.0002802,2]
[355737234,1741520673191,-174.11846488,0.0002802,2]
[355737237,1741520731786,-58.62800286,0.0002802,2]
[355737238,1741520731812,-161.22222884,0.0002802,2]
[355737239,1741520737625,-170.77621804,0.0002802,2]
[355737240,1741520753124,-168.00155312,0.0002802,2]
[355737241,1741520753146,-357.06810821,0.0002802,2]
[355737242,1741520792420,-350.0,0.0002802,2]
[355737244,1741520839099,-188.96858921,0.0002802,2]
[355737245,1741520839123,-114.50535586,0.00030224,2]
[355737246,1741520839744,-101.92831444,0.00030224,2]
[355737247,1741520839769,-81.81435756,0.00030234,2]
[355737249,1741520845115,-101.21975544,0.00030234,2]
[355737250,1741520845137,-396.37508931,0.00031,10]
[355737251,1741520847097,-103.62491069,0.00031,10]
[355737252,1741520847118,-500.0,0.00031,10]
[355737253,1741520847140,-500.0,0.00031,10]
[355737254,1741520847162,-500.0,0.00031,10]
[355737255,1741520847184,-455.94041224,0.00031,10]
[355737256,1741520847853,-44.05958776,0.00031,10]
[355737257,1741520847877,-183.034113,0.00031141,2]
[355737258,1741520847898,-98.78783436,0.00031391,7]
[355737259,1741520852078,-430.36042503,0.000289,2]
[355737260,1741520852099,-198.21216564,0.00031391,7]
[355737261,1741520852120,-459.0,0.00031391,7]
[355737262,1741520852142,-187.0,0.00031391,7]
[355737263,1741520852163,-289.0,0.00031391,7]
[355737264,1741520852185,-150.0,0.00031391,7]
[355737265,1741520852206,-802.43614406,0.000319,6]
[355737266,1741520852229,-183.034113,0.00032048,2]
[355737267,1741520852250,-1002.38027718,0.00032219,2]
[355737268,1741520852271,-273.58678025,0.00032319,2]
[355737269,1741520853291,-150.0,0.00032319,2]
[355737270,1741520854082,-76.41321975,0.00032319,2]
[355737271,1741520854110,-81.32759692,0.00032319,2]
[355737272,1741520918208,7300.75,0.00028,10]
[355737273,1741520950089,-200.0,0.00031309,2]
[355737274,1741520950116,-418.67240308,0.00032319,2]
[355737275,1741520950141,-500.0,0.00032319,2]
[355737276,1741520950164,-500.0,0.00032319,2]
[355737277,1741520950188,-178.7270363,0.00032319,2]
[355737278,1741520950210,-500.0,0.00032319,2]
[355737279,1741520950237,-500.0,0.00032319,2]
[355737280,1741520950259,-500.0,0.00032319,2]
[355737281,1741520950283,-500.0,0.00032319,2]
[355737282,1741520950306,-500.0,0.00032319,2]
[355737283,1741520950330,-500.0,0.00032319,2]
[355737284,1741520950352,-185.71686607,0.00032319,2]
[355737285,1741520950377,-500.0,0.00032319,2]
[355737286,1741520950399,-500.0,0.00032319,2]
[355737287,1741520950427,-500.0,0.00032319,2]
[355737288,1741520950452,-500.0,0.00032319,2]
[355737289,1741520950474,-307.91433549,0.00032319,2]
[355737290,1741520950501,-500.0,0.00032319,2]
[355737291,1741520950525,-500.0,0.00032319,2]
[355737292,1741520950551,-500.0,0.00032319,2]
[355737293,1741520950578,-500.0,0.00032319,2]
[355737294,1741520950604,-500.0,0.00032319,2]
[355737295,1741520950629,-500.0,0.00032319,2]
[355737296,1741520950663,-500.0,0.00032319,2]
[355737297,1741520950688,-500.0,0.00032319,2]
[355737298,1741520950711,-500.0,0.00032319,2]
[355737299,1741520950737,-500.0,0.00032319,2]
[355737300,1741520950761,-500.0,0.00032319,2]
[355737301,1741520950787,-500.0,0.00032319,2]
[355737302,1741520950814,-500.0,0.00032319,2]
[355737303,1741520950839,-500.0,0.00032319,2]
[355737304,1741520950865,-500.0,0.00032319,2]
[355737305,1741520950890,-500.0,0.00032319,2]
[355737306,1741520950915,-500.0,0.00032319,2]
[355737307,1741520950941,-500.0,0.00032319,2]
[355737308,1741520950967,-500.0,0.00032319,2]
[355737309,1741520950992,-500.0,0.00032319,2]
[355737310,1741520951018,-500.0,0.00032319,2]
[355737311,1741520951044,-500.0,0.00032319,2]
[355737312,1741520951070,-500.0,0.00032319,2]
[355737313,1741520951096,-500.0,0.00032319,2]
[355737314,1741520951356,-500.0,0.00032319,2]
[355737315,1741520951383,-500.0,0.00032319,2]
[355737316,1741520951407,-500.0,0.00032319,2]
[355737317,1741520951435,-500.0,0.00032319,2]
[355737318,1741520951458,-500.0,0.00032319,2]
[355737319,1741520951483,-500.0,0.00032319,2]
[355737320,1741520951508,-423.50428859,0.00032319,2]
[355737321,1741520951541,-500.0,0.00032319,2]
[355737322,1741520951566,-500.0,0.00032319,2]
[355737323,1741520951588,-350.0,0.00032319,2]
[355737324,1741520951613,-500.0,0.00032319,2]
[355737325,1741520951643,-500.0,0.00032319,2]
[355737326,1741520951667,-500.0,0.00032319,2]
[355737327,1741520951692,-350.0,0.00032319,2]
[355737328,1741520951717,-500.0,0.00032319,2]
[355737329,1741520951744,-500.0,0.00032319,2]
[355737330,1741520951768,-500.0,0.00032319,2]
[355737331,1741520951794,-500.0,0.00032319,2]
[355737332,1741520951819,-500.0,0.00032319,2]
[355737333,1741520951847,-500.0,0.00032319,2]
[355737334,1741520951871,-500.0,0.00032319,2]
[355737335,1741520951894,-500.0,0.00032319,2]
[355737336,1741520951918,-500.0,0.00032319,2]
[355737337,1741520951940,-500.0,0.00032319,2]
[355737338,1741520951963,-160.31466163,0.00032319,2]
[355737339,1741520951985,-170.73302812,0.00032319,2]
[355737340,1741520952008,-500.0,0.00032319,2]
[355737341,1741520952035,-500.0,0.00032319,2]
[355737342,1741520952060,-500.0,0.00032319,2]
[355737343,1741520952083,-202.47862416,0.00032319,2]
[355737344,1741520952107,-500.0,0.00032319,2]
[355737345,1741520952132,-500.0,0.00032319,2]
[355737346,1741520952160,-500.0,0.00032319,2]
[355737347,1741520952186,-500.0,0.00032319,2]
[355737348,1741520952214,-500.0,0.00032319,2]
[355737349,1741520952323,-500.0,0.00032319,2]
[355737350,1741520952353,-500.0,0.00032319,2]
[355737351,1741520952378,-500.0,0.00032319,2]
[355737352,1741520952401,-500.0,0.00032319,2]
[355737353,1741520952425,-500.0,0.00032319,2]
[355737354,1741520952448,-500.0,0.00032319,2]
[355737355,1741520952472,-500.0,0.00032319,2]
[355737356,1741520952495,-500.0,0.00032319,2]
[355737357,1741520952521,-500.0,0.00032319,2]
[355737358,1741520952549,-500.0,0.00032319,2]
[355737359,1741520952574,-500.0,0.00032319,2]
[355737360,1741520952598,-528.48817831,0.00032319,2]
[355737361,1741520952622,-500.0,0.00032319,2]
[355737362,1741520952648,-500.0,0.00032319,2]
[355737363,1741520952671,-500.0,0.00032319,2]
[355737364,1741520952696,-500.0,0.00032319,2]
[355737365,1741520952721,-500.0,0.00032319,2]
[355737366,1741520952744,-186.54478239,0.00032321,2]
[355737367,1741520952767,-563.50468903,0.00032321,2]
[355737368,1741520952790,-24900.0,0.00032322,2]
[355737369,1741520952812,-258.89676619,0.000324,5]
[355737370,1741520952834,-297.99655969,0.000324,5]
[355737371,1741520952854,-500.0,0.000324,5]
[355737372,1741520952875,-853.908834,0.00032581,2]
[355737373,1741520952896,-192.3367912,0.00033382,2]
[355737374,1741520952917,-500.0,0.0003346,5]
[355737375,1741520952937,-2166.674476,0.00033547,2]
[355737376,1741520952958,-430.36042503,0.000339,2]
[355737377,1741520952979,-169.080735,0.0003589,2]
[355737378,1741520953001,-1002.38027716,0.00035978,2]
[355737379,1741520953024,-178.34664834,0.000362,98]
[355737380,1741520956094,-168.41,0.00037684,2]
[355737381,1741520956116,-168.41,0.00037684,2]
[355737382,1741520956138,-151.0,0.0003769,14]
[355737383,1741520956159,-212.266402,0.0003769,14]
[355737384,1741520956185,-212.266402,0.0003769,14]
[355737385,1741520956207,-151.0,0.0003769,14]
[355737386,1741520956228,-256.97,0.00037692,2]
[355737387,1741520956248,-151.0,0.00037695,14]
[355737388,1741520956269,-212.266402,0.00037695,14]
[355737389,1741520956291,-212.266402,0.00037695,14]
[355737390,1741520956311,-151.0,0.00037695,14]
[355737391,1741520956331,-1000.0,0.00037879,5]
[355737392,1741520956352,-316.731141,0.00038173,2]
[355737393,1741520956372,-216.59,0.00038363,14]
[355737394,1741520956393,-430.36042503,0.000389,2]
[355737395,1741520956413,-256.97,0.00039062,2]
[355737396,1741520956434,-1002.38027716,0.00039736,2]
[355737397,1741520956454,-256.97,0.00040432,2]
[355737398,1741520962150,-256.97,0.00041802,30]
[355737399,1741520962170,-852.5464507,0.00042574,2]
[355737400,1741520967073,-256.97,0.00043172,30]
[355737401,1741520967095,-1002.38027716,0.00043495,28]
[355737882,1741521008455,600.0,0.00032301,2]
[355737884,1741521009248,622.2,0.00032356,2]
[355737887,1741521009837,645.2214,0.00032411,2]
[355737891,1741521010617,669.0945918,0.00032466,2]
[355737896,1741521011727,693.8510917,0.00032521,2]
[355737897,1741521012430,722.47652298,0.00032576,2]
[355737912,1741521032896,-500.0,0.00043835,120]
[355737913,1741521032906,-802.64937177,0.000439,9]
[355737914,1741521032916,-212.555042,0.00044222,120]
[355737915,1741521032925,-212.266402,0.00044222,120]
[355737916,1741521032935,-212.266402,0.00044222,120]
[355737917,1741521032944,-151.0,0.00044222,120]
[355737918,1741521032953,-500.0,0.00044383,120]
[355737919,1741521032963,-256.97,0.00044542,30]
[355737920,1741521032972,-216.59,0.00044716,120]
[355737921,1741521032982,-500.0,0.00044931,120]
[355737922,1741521032991,-500.0,0.00045479,120]
[355737923,1741521033001,-256.97,0.00045912,30]
[355737924,1741521033011,-212.266402,0.00045979,120]
[355737925,1741521033020,-212.266402,0.00045979,120]
[355737926,1741521033029,-151.0,0.00045979,120]
[355737928,1741521033039,-212.266402,0.00045989,120]
[355737929,1741521033048,-212.266402,0.00045989,120]
[355737931,1741521033058,-151.0,0.00045989,120]
[355737933,1741521033068,-212.266402,0.00045999,120]
[355737935,1741521033077,-212.266402,0.00045999,120]
[355737937,1741521033087,-151.0,0.00045999,120]
[355737939,1741521033097,-500.0,0.00046027,120]
[355737941,1741521033108,-212.266402,0.0004618,120]
[355737943,1741521033118,-212.266402,0.0004618,120]
[355737945,1741521033128,-151.0,0.0004618,120]
[355737948,1741521033139,-203.323823,0.0004619,120]
[355737950,1741521033148,-203.323823,0.0004619,120]
[355737951,1741521033158,-212.266402,0.0004619,120]
[355737953,1741521033168,-212.266402,0.0004619,120]
[355737955,1741521033178,-203.323823,0.000462,120]
[355737957,1741521033189,-203.323823,0.000462,120]
[355737959,1741521033199,-212.266402,0.000462,120]
[355737962,1741521033209,-212.266402,0.000462,120]
[355737964,1741521033218,-3000.0,0.00046245,2]
[355737965,1741521033227,-168.41,0.0004626,2]
[355737967,1741521033237,-11151.29287149,0.0004627,4]
[355737993,1741521033468,1567.2535322,0.00042469,2]
[355738430,1741521037907,263.833,0.000371,5]
[355738522,1741521038712,-2835.55802024,0.0004627,4]
[355738632,1741521039983,-228.84059144,0.0004627,4]
[355738644,1741521040090,-1284.62512455,0.0004627,4]
[355738763,1741521041154,-263.833,0.0004372,120]
[355738765,1741521041163,-1834.74725988,0.0004627,4]
[355738767,1741521041172,-67.75666363,0.0004627,4]
[355738885,1741521043943,-623.58756614,0.0004627,4]
[355738887,1741521043952,-203.323823,0.0004628,120]
[355738888,1741521043961,-199.56370228,0.0004628,120]
[355738891,1741521043976,-3.76012072,0.0004628,120]
[355738893,1741521043986,-212.266402,0.0004628,120]
[355738894,1741521043995,-212.266394,0.0004628,120]
[355738895,1741521044004,-203.323823,0.0004629,120]
[355738896,1741521044014,-203.323823,0.0004629,120]
[355738897,1741521044023,-203.323823,0.000463,120]
[355738898,1741521044032,-203.323823,0.000463,120]
[355738899,1741521044041,-203.323823,0.00046335,120]
[355738900,1741521044051,-203.323823,0.00046335,120]
[355738901,1741521044060,-203.323823,0.00046355,120]
[355738902,1741521044069,-203.323823,0.00046355,120]
[355738903,1741521044079,-500.0,0.00046383,120]
[355738904,1741521044089,-184.88023838,0.00046465,2]
[355738905,1741521044099,-394.45328232,0.00046554,31]
[355738906,1741521044109,-556.72,0.00046555,30]
[355738907,1741521044118,-262.67,0.00046555,10]
[355738908,1741521044128,-583.18206458,0.00046555,4]
[355738910,1741521046727,-9509.97937063,0.00046555,4]
[355739107,1741521140515,500.0,0.00031,10]
[355739108,1741521148448,500.0,0.00031,10]
[355739109,1741521148864,724.66915627,0.0002802,2]
[355739112,1741521434488,6000.0,0.00028,10]
[355739116,1741521946127,-270.97609327,0.00031,10]
[355739117,1741521946150,-500.0,0.00031,10]
[355739118,1741521946172,-720.07569948,0.00031291,2]
[355739119,1741522013073,-280.26536119,0.00031291,2]
[355739120,1741522037120,-2151.43965842,0.00031291,2]
[355739121,1741522037142,-209.0,0.00031391,7]
[355739122,1741522037164,-150.0,0.00031391,7]
[355739123,1741522037187,-407.0,0.00031391,7]
[355739124,1741522037211,-264.0,0.00031391,7]
[355739125,1741522037232,-646.0,0.00031391,7]
[355739126,1741522037256,-419.0,0.00031391,7]
[355739127,1741522037277,-150.0,0.00031391,7]
[355739128,1741522037299,-150.0,0.00031391,7]
[355739129,1741522037320,-422.966321,0.00031447,2]
[355739130,1741522037444,-203.4685256,0.00031572,2]
[355739131,1741522037468,-910.56540652,0.000319,6]
[355739132,1741522037491,-930.71833459,0.00033653,2]
[355739133,1741522037514,-160.35,0.00033745,2]
[355739134,1741522037534,-394.45328232,0.00033752,7]
[355739135,1741522037559,-500.0,0.00033752,7]
[355739136,1741522037581,-500.0,0.00033752,2]
[355739137,1741522037603,-500.0,0.00033752,7]
[355739138,1741522037627,-680.51753592,0.00033752,2]
[355739139,1741522037648,-500.0,0.00033752,7]
[355739140,1741522037670,-416.89474706,0.00033752,2]
[355739141,1741522037691,-500.0,0.00033752,7]
[355739142,1741522037715,-680.51753592,0.00033752,2]
[355739143,1741522037745,-459.98004137,0.00033752,7]
[355739144,1741522037786,-680.51753592,0.00033752,2]
[355739145,1741522037814,-500.0,0.00033752,7]
[355739146,1741522037846,-680.51753592,0.00033752,2]
[355739147,1741522037875,-262.32301271,0.00033752,7]
[355739148,1741522037907,-680.51753592,0.00033752,2]
[355739149,1741522037939,-680.51753592,0.00033752,2]
[355739150,1741522037975,-680.51753592,0.00033752,2]
[355739151,1741522038017,-680.51753592,0.00033752,2]
[355739152,1741522038050,-680.51753592,0.00033752,2]
[355739153,1741522038085,-680.51753592,0.00033752,2]
[355739154,1741522038119,-680.51753592,0.00033752,2]
[355739155,1741522038155,-32.769255,0.00033752,2]
[355739156,1741522041079,-647.74828092,0.00033752,2]
[355739157,1741522041104,-680.51753592,0.00033752,2]
[355739158,1741522041129,-680.51753592,0.00033752,2]
[355739159,1741522041155,-680.51753592,0.00033752,2]
[355739160,1741522041180,-680.51753592,0.00033752,2]
[355739161,1741522041204,-680.51753592,0.00033752,2]
[355739162,1741522041229,-680.51753592,0.00033752,2]
[355739163,1741522041259,-680.51753592,0.00033752,2]
[355739164,1741522041286,-680.51753592,0.00033752,2]
[355739165,1741522041312,-680.51753592,0.00033752,2]
[355739166,1741522041337,-680.51753592,0.00033752,2]
[355739167,1741522041362,-680.51753592,0.00033752,2]
[355739168,1741522041387,-680.51753592,0.00033752,2]
[355739169,1741522041411,-680.51753592,0.00033752,2]
[355739170,1741522041436,-680.51753592,0.00033752,2]
[355739171,1741522041460,-680.51753592,0.00033752,2]
[355739172,1741522041485,-680.51753592,0.00033752,2]
[355739173,1741522041515,-680.51753592,0.00033752,2]
[355739174,1741522041539,-680.51753592,0.00033752,2]
[355739175,1741522041562,-680.51753592,0.00033752,2]
[355739176,1741522041586,-680.51753592,0.00033752,2]
[355739177,1741522041609,-680.51753592,0.00033752,2]
[355739178,1741522041633,-680.51753592,0.00033752,2]
[355739179,1741522041656,-680.51753592,0.00033752,2]
[355739180,1741522041679,-680.51753592,0.00033752,2]
[355739181,1741522041702,-680.51753592,0.00033752,2]
[355739182,1741522041732,-680.51753592,0.00033752,2]